{"text_format":"3","workbook":"xlsx","n_sheets":37,"sheets":["Viršelis","60 m","60 m F","60 m suv","60 v","60 v F","60 v suv","200 m","200 m suv","200 v","200 v suv","400 m","400 m suv","400 v","400 v suv","800 m","800 m suv","800 v","800 v suv","1500 m suv","1500 v suv","3000 m suv","3000 v suv","60bb m","60bb m suv","60bb v","60bb v suv","Kartis v","Aukštis m","Aukštis v","Kartis m","Tolis m ","Tolis v","Trišuolis m","Trišuolis v","Rutulys m","Rutulys v"],"not_rendered":{"images":3,"external_links":6,"defined_names":625},"read":"whole","date_system":"1900"}

{"sheet":"Viršelis","index":0,"n_rows":37,"n_cols":12,"rows_kept":37}
{"$rows_empty":15}
[{"$nulls":3},"ŠIAULIŲ MIESTO LENGVOSIOS ATLETIKOS"]
[]
[{"$nulls":3},"ATVIRAS ČEMPIONATAS"]
{"$rows_empty":11}
[{"$nulls":3},"2026 m. vasario 18 d."]
[]
[]
[{"$nulls":3},"Šiauliai, Šiaulių lengvosios atletikos ir sveikatingumo centro maniežas"]
[]
[{"$nulls":4},"Varžybų vyr. teisėja",{"$nulls":6},"Juzefa Baikštienė"]
[]
[{"$nulls":4},"Varžybų sekretorius",{"$nulls":6},"Justinas Beržanskis"]

{"sheet":"60 m","index":1,"n_rows":31,"n_cols":14,"rows_kept":31}
["ŠIAULIŲ MIESTO LENGVOSIOS ATLETIKOS ATVIRAS ČEMPIONATAS"]
["Šiauliai, 2026 m. vasario 18 d."]
[]
[null,"60 m bėgimas moterys"]
[null,1,"bėgimas iš",4]
["Vieta","Takas","Vardas","Pavardė","Gimimo data","Komanda","Sporto mokykla","Sporto klubas","R.l","Rez.p.b","R.l","Rez. f","Kv.l","Treneris"]
[1,3,"Julija","Blizniuk","1995-01-16","Šiauliai","ŠLASC",null,0.128,8.24,null,null,"II A","L. Maceika"]
[2,4,"Enrika","Pocevičiūtė","2010-08-16","Šiauliai","ŠLASC",null,0.215,8.38,null,null,"II A","R. Kergytė-Dauskurdienė"]
[3,5,"Agota","Petkutė","2011-11-07","Šiauliai","ŠLASC",null,0.171,8.74,null,null,"III A","L. Maceika"]
[4,1,"Agnė","Sipavičiūtė","2008-07-11","Šiauliai","ŠLASC","„Vytis“",{"v":0.2,"d":"0.200"},8.76,null,null,"III A","D. Vrubliauskas"]
[5,2,"Ugnė","Marcinkutė","2008-05-29","Šiauliai","ŠLASC",null,0.185,9.14,null,null,"I JA","U. Baikštytė"]
[6,6,"Ditė Marija","Sakunskaitė","2012-04-30","Šiauliai","ŠLASC",null,0.213,{"v":9.2,"d":"9.20"},null,null,"I JA","J. Baikštys"]
[null,2,"bėgimas iš",4]
["Vieta","Takas","Vardas","Pavardė","Gimimo data","Komanda","Sporto mokykla","Sporto klubas","R.l","Rez.p.b","R.l","Rez. f","Kv.l","Treneris"]
[1,3,"Arina","Matvejeva","2004-11-15","Latvija",null,null,{"v":0.14,"d":"0.140"},{"v":8.2,"d":"8.20"},null,null,"II A","A. Titov"]
[2,4,"Urtė","Augėnaitė","2012-03-28","Šiauliai","ŠLASC",null,0.359,8.68,null,null,"III A","L. Maceika"]
[3,5,"Fausta","Gedvilaitė","2010-06-28","Šiauliai","ŠLASC",null,0.382,8.71,null,null,"III A","D. Maceikienė"]
[4,1,"Ugnė","Juozapavičiūtė","2009-01-09","Telšiai","TSRC","„Žemaitija“",0.187,9.25,null,null,"I JA","L. Kaveckienė"]
[5,2,"Brigita","Kazokaitytė","2012-07-20","Šiauliai","ŠLASC",null,0.472,10.11,null,null,"III JA","J. Baikštys"]
[null,3,"bėgimas iš",4]
["Vieta","Takas","Vardas","Pavardė","Gimimo data","Komanda","Sporto mokykla","Sporto klubas","R.l","Rez.p.b","R.l","Rez. f","Kv.l","Treneris"]
[1,3,"Austėja","Žilinskaitė","2007-11-06","Pasvalys","Pasvalio SM","SK Svalė",0.137,7.87,null,null,"I A","K. Mačėnas"]
[2,4,"Miglė","Diržinauskaitė","2009-05-27","Šiauliai","ŠlASC/ŠSG",null,0.145,8.18,null,null,"II A","J. Baikštys"]
[3,5,"Kornelija","Valinskaitė","2010-01-09","Šiauliai","ŠLASC",null,{"v":0.26,"d":"0.260"},8.39,null,null,"II A","L. Maceika"]
[4,6,"Airina","Rimkevičiūtė","2007-10-14","Šiauliai","ŠlASC/ŠSG",null,0.159,8.67,null,null,"III A","J. Baikštienė"]
[5,1,"Danielė","Sakalauskaitė","2012-04-12","Šiauliai","ŠLASC",null,0.198,9.19,null,null,"I JA","U. Baikštytė"]
[6,2,"Kotryna","Kučinskytė","2012-06-26","Šiauliai","ŠLASC",null,0.358,10.64,null,null,"","D. Šaučikovas "]
[null,4,"bėgimas iš",4]
["Vieta","Takas","Vardas","Pavardė","Gimimo data","Komanda","Sporto mokykla","Sporto klubas","R.l","Rez.p.b","R.l","Rez. f","Kv.l","Treneris"]
[1,3,"Keitė","Andrulytė","2010-11-14","Šiauliai","ŠLASC-ŠSG",null,0.135,8.38,null,null,"II A","V. Žiedienė, J. Spudis"]
[2,4,"Gabija","Preibytė","2009-09-08","Telšiai","TSRC","„Žemaitija“",0.174,8.49,null,null,"III A","L. Kaveckienė"]

{"sheet":"60 m F","index":2,"n_rows":12,"n_cols":14,"rows_kept":12,"hidden":true}
["ŠIAULIŲ MIESTO LENGVOSIOS ATLETIKOS ATVIRAS ČEMPIONATAS"]
["Šiauliai, 2026 m. vasario 18 d."]
[]
[null,"60 m bėgimas moterys"]
["Finalas"]
["Vieta","Takas","Vardas","Pavardė","Gimimo data","Komanda","Sporto mokykla","Sporto klubas","R.l","Rez.p.b","R.l","Rez. f","Kv.l.","Treneris"]
[1,{"$nulls":11},{"$f":"IF(ISBLANK(J7),\"\",IF(J7>10.34,\"\",IF(J7<=8,\"I A\",IF(J7<=8.44,\"II A\",IF(J7<=9.04,\"III A\",IF(J7<=9.64,\"I JA\",IF(J7<=10.04,\"II JA\",IF(J7<=10.34,\"III JA\"))))))))","v":""}]
[2,{"$nulls":11},{"$f":"IF(ISBLANK(L8),\"\",IF(L8>10.34,\"\",IF(L8<=8,\"I A\",IF(L8<=8.44,\"II A\",IF(L8<=9.04,\"III A\",IF(L8<=9.64,\"I JA\",IF(L8<=10.04,\"II JA\",IF(L8<=10.34,\"III JA\"))))))))","v":""}]
[3,{"$nulls":11},{"$f":"IF(ISBLANK(J9),\"\",IF(J9>10.34,\"\",IF(J9<=8,\"I A\",IF(J9<=8.44,\"II A\",IF(J9<=9.04,\"III A\",IF(J9<=9.64,\"I JA\",IF(J9<=10.04,\"II JA\",IF(J9<=10.34,\"III JA\"))))))))","v":""}]
[4,{"$nulls":11},{"$f":"IF(ISBLANK(L10),\"\",IF(L10>10.34,\"\",IF(L10<=8,\"I A\",IF(L10<=8.44,\"II A\",IF(L10<=9.04,\"III A\",IF(L10<=9.64,\"I JA\",IF(L10<=10.04,\"II JA\",IF(L10<=10.34,\"III JA\"))))))))","v":""}]
[5,{"$nulls":11},{"$f":"IF(ISBLANK(L11),\"\",IF(L11>10.34,\"\",IF(L11<=8,\"I A\",IF(L11<=8.44,\"II A\",IF(L11<=9.04,\"III A\",IF(L11<=9.64,\"I JA\",IF(L11<=10.04,\"II JA\",IF(L11<=10.34,\"III JA\"))))))))","v":""}]
[6,{"$nulls":11},{"$f":"IF(ISBLANK(L12),\"\",IF(L12>10.34,\"\",IF(L12<=8,\"I A\",IF(L12<=8.44,\"II A\",IF(L12<=9.04,\"III A\",IF(L12<=9.64,\"I JA\",IF(L12<=10.04,\"II JA\",IF(L12<=10.34,\"III JA\"))))))))","v":""}]

{"sheet":"60 m suv","index":3,"n_rows":26,"n_cols":13,"rows_kept":26}
["ŠIAULIŲ MIESTO LENGVOSIOS ATLETIKOS ATVIRAS ČEMPIONATAS"]
["Šiauliai, 2026 m. vasario 18 d."]
[]
[null,"60 m bėgimas moterys"]
["Suvestinė"]
["Vieta","Vardas","Pavardė","Gimimo data","Komanda","Sporto mokykla","Sporto klubas","R.l","Rez.p.b","R.l","Rez. f","Kv.l","Treneris"]
[1,"Austėja","Žilinskaitė","2007-11-06","Pasvalys","Pasvalio SM","SK Svalė",0.137,7.87,0.137,7.77,"I A","K. Mačėnas"]
[2,"Arina","Matvejeva","2004-11-15","Latvija",null,null,{"v":0.14,"d":"0.140"},{"v":8.2,"d":"8.20"},0.133,8.11,"II A","A. Titov"]
[3,"Miglė","Diržinauskaitė","2009-05-27","Šiauliai","ŠlASC/ŠSG",null,0.145,8.18,0.148,8.17,"II A","J. Baikštys"]
[4,"Julija","Blizniuk","1995-01-16","Šiauliai","ŠLASC",null,0.128,8.24,0.128,8.28,"II A","L. Maceika"]
[5,"Enrika","Pocevičiūtė","2010-08-16","Šiauliai","ŠLASC",null,0.215,8.38,"NT",8.32,"II A","R. Kergytė-Dauskurdienė"]
[6,"Keitė","Andrulytė","2010-11-14","Šiauliai","ŠLASC",null,0.174,8.38,null,"DNS","II A","V. Žiedienė, J. Spudis"]
["Vieta","Vardas","Pavardė","Gimimo data","Komanda","Sporto mokykla","Sporto klubas","R.l","Rez.p.b","R.l","Rez. f","Kv.l","Treneris"]
[7,"Kornelija","Valinskaitė","2010-01-09","Šiauliai","ŠLASC",null,{"v":0.26,"d":"0.260"},8.39,null,null,"II A","L. Maceika"]
[8,"Gabija","Preibytė","2009-09-08","Telšiai","TSRC","„Žemaitija“",0.135,8.49,null,null,"III A","L. Kaveckienė"]
[9,"Airina","Rimkevičiūtė","2007-10-14","Šiauliai","ŠlASC/ŠSG",null,0.159,8.67,null,null,"III A","J. Baikštienė"]
[10,"Urtė","Augėnaitė","2012-03-28","Šiauliai","ŠLASC",null,0.359,8.68,null,null,"III A","L. Maceika"]
[11,"Fausta","Gedvilaitė","2010-06-28","Šiauliai","ŠLASC",null,0.382,8.71,null,null,"III A","D. Maceikienė"]
[12,"Agota","Petkutė","2011-11-07","Šiauliai","ŠLASC",null,0.171,8.74,null,null,"III A","L. Maceika"]
[13,"Agnė","Sipavičiūtė","2008-07-11","Šiauliai","ŠLASC","„Vytis“",{"v":0.2,"d":"0.200"},8.76,null,null,"III A","D. Vrubliauskas"]
[14,"Ugnė","Marcinkutė","2008-05-29","Šiauliai","ŠLASC",null,0.185,9.14,null,null,"I JA","U. Baikštytė"]
[15,"Danielė","Sakalauskaitė","2012-04-12","Šiauliai","ŠLASC",null,0.198,9.19,null,null,"I JA","U. Baikštytė"]
[16,"Ditė Marija","Sakunskaitė","2012-04-30","Šiauliai","ŠLASC",null,0.213,{"v":9.2,"d":"9.20"},null,null,"I JA","J. Baikštys"]
[17,"Ugnė","Juozapavičiūtė","2009-01-09","Telšiai","TSRC","„Žemaitija“",0.187,9.25,null,null,"I JA","L. Kaveckienė"]
[18,"Brigita","Kazokaitytė","2012-07-20","Šiauliai","ŠLASC",null,0.472,10.11,null,null,"III JA","J. Baikštys"]
[19,"Kotryna","Kučinskytė","2012-06-26","Šiauliai","ŠLASC",null,0.358,10.64,null,null,"","D. Šaučikovas "]

{"sheet":"60 v","index":4,"n_rows":20,"n_cols":14,"rows_kept":20}
["ŠIAULIŲ MIESTO LENGVOSIOS ATLETIKOS ATVIRAS ČEMPIONATAS"]
["Šiauliai, 2026 m. vasario 18 d."]
[]
[null,"60 m bėgimas vyrai"]
[null,1,"bėgimas iš",2]
["Vieta","Takas","Vardas","Pavardė","Gimimo data","Komanda","Sporto mokykla","Sporto klubas","R.l","Rez.p.b","R.l","Rez. f","Kv.l","Treneris"]
[1,4,"Kristupas","Spudis","2007-09-25","Šiauliai","ŠlASC/ŠSG",null,0.162,7.18,null,null,"I A","J. Baikštys"]
[2,3,"Juozas","Rundėnas","2009-04-30","Pasvalys","Pasvalio SM","SK Svalė",0.164,7.41,null,null,"II A","K. Mačėnas"]
[3,6,"Rojus","Daugėla","2008-06-01","Šiauliai","ŠLASC",null,0.186,7.42,null,null,"II A","D. Maceikienė"]
[4,2,"Edvinas","Guzas","2008-11-08","Šiauliai","ŠSG",null,0.142,7.45,null,null,"II A","R. Razmaitė, A. Kitanov"]
[5,1,"Simonas","Murza","2008-06-15","Šiauliai","ŠLASC",null,{"v":0.15,"d":"0.150"},7.88,null,null,"III A","J. Spudis, V. Žiedienė"]
[6,5,"Augustas","Šimkus","2010-02-02","Šiauliai","ŠLASC",null,0.159,8.06,null,null,"III A","L. Roikienė"]
[null,2,"bėgimas iš",2]
["Vieta","Takas","Vardas","Pavardė","Gimimo data","Komanda","Sporto mokykla","Sporto klubas","R.l","Rez.p.b","R.l","Rez. f","Kv.l","Treneris"]
[1,3,"Gustas","Židonis","2008-07-17","Pasvalys","Pasvalio SM","SK „Lėvuo'“",0.143,7.16,null,null,"I A","E. Žilys"]
[2,4,"Gustas","Janulis","2009-07-03","Šiauliai","ŠLASC",null,0.165,7.38,null,null,"II A","J. Baikštys"]
[3,2,"Denas","Kupčaloitis","2009-02-01","Šiauliai","ŠLASC",null,0.173,7.56,null,null,"II A","D. Šaučikovas "]
[4,6,"Erikas","Kalnietis","2009-09-22","Šiauliai","ŠSG",null,0.159,7.87,null,null,"III A","R. Razmaitė, A. Kitanov"]
[5,1,"Nikolas","Vaišvilas","2008-07-12","Šiauliai","ŠLASC",null,0.197,7.88,null,null,"III A","J. Baikštys"]
[6,5,"Ivan","Schuha","2011-01-19","Šiauliai","ŠLASC",null,0.166,7.97,null,null,"III A","L. Maceika"]

{"sheet":"60 v F","index":5,"n_rows":12,"n_cols":14,"rows_kept":12,"hidden":true}
["ŠIAULIŲ MIESTO LENGVOSIOS ATLETIKOS ATVIRAS ČEMPIONATAS"]
["Šiauliai, 2026 m. vasario 18 d."]
[]
[null,"60 m bėgimas vyrai"]
["Finalas"]
["Vieta","Takas","Vardas","Pavardė","Gimimo data","Komanda","Sporto mokykla","Sporto klubas","R.l","Rez.p.b","R.l","Rez. f","Kv.l.","Treneris"]
[1,1,{"$nulls":10},{"$f":"IF(ISBLANK(L7),\"\",IF(L7>8.94,\"\",IF(L7<=6.84,\"SM\",IF(L7<=7,\"KSM\",IF(L7<=7.3,\"I A\",IF(L7<=7.64,\"II A\",IF(L7<=8.24,\"III A\",IF(L7<=8.94,\"I JA\"))))))))","v":""}]
[2,2,{"$nulls":10},{"$f":"IF(ISBLANK(L8),\"\",IF(L8>8.94,\"\",IF(L8<=6.84,\"SM\",IF(L8<=7,\"KSM\",IF(L8<=7.3,\"I A\",IF(L8<=7.64,\"II A\",IF(L8<=8.24,\"III A\",IF(L8<=8.94,\"I JA\"))))))))","v":""}]
[3,3,{"$nulls":10},{"$f":"IF(ISBLANK(L9),\"\",IF(L9>8.94,\"\",IF(L9<=6.84,\"SM\",IF(L9<=7,\"KSM\",IF(L9<=7.3,\"I A\",IF(L9<=7.64,\"II A\",IF(L9<=8.24,\"III A\",IF(L9<=8.94,\"I JA\"))))))))","v":""}]
[4,4,{"$nulls":10},{"$f":"IF(ISBLANK(L10),\"\",IF(L10>8.94,\"\",IF(L10<=6.84,\"SM\",IF(L10<=7,\"KSM\",IF(L10<=7.3,\"I A\",IF(L10<=7.64,\"II A\",IF(L10<=8.24,\"III A\",IF(L10<=8.94,\"I JA\"))))))))","v":""}]
[5,5,{"$nulls":10},{"$f":"IF(ISBLANK(J11),\"\",IF(J11>8.94,\"\",IF(J11<=6.84,\"SM\",IF(J11<=7,\"KSM\",IF(J11<=7.3,\"I A\",IF(J11<=7.64,\"II A\",IF(J11<=8.24,\"III A\",IF(J11<=8.94,\"I JA\"))))))))","v":""}]
[6,6,{"$nulls":10},{"$f":"IF(ISBLANK(J12),\"\",IF(J12>8.94,\"\",IF(J12<=6.84,\"SM\",IF(J12<=7,\"KSM\",IF(J12<=7.3,\"I A\",IF(J12<=7.64,\"II A\",IF(J12<=8.24,\"III A\",IF(J12<=8.94,\"I JA\"))))))))","v":""}]

{"sheet":"60 v suv","index":6,"n_rows":19,"n_cols":13,"rows_kept":19}
["ŠIAULIŲ MIESTO LENGVOSIOS ATLETIKOS ATVIRAS ČEMPIONATAS"]
["Šiauliai, 2026 m. vasario 18 d."]
[]
[null,"60 m bėgimas vyrai"]
["Suvestinė"]
["Vieta","Vardas","Pavardė","Gimimo data","Komanda","Sporto mokykla","Sporto klubas","R.l","Rez.p.b","R.l","Rez. f","Kv.l.","Treneris"]
[1,"Kristupas","Spudis","2007-09-25","Šiauliai","ŠlASC/ŠSG",null,0.162,7.18,0.153,7.06,"I A","J. Baikštys"]
[2,"Gustas","Židonis","2008-07-17","Pasvalys","Pasvalio SM","SK „Lėvuo'“",0.143,7.16,0.143,7.12,"I A","E. Žilys"]
[3,"Gustas","Janulis","2009-07-03","Šiauliai","ŠLASC",null,0.165,7.38,0.171,7.36,"II A","J. Baikštys"]
[4,"Rojus","Daugėla","2008-06-01","Šiauliai","ŠLASC",null,0.186,7.42,{"v":0.2,"d":"0.200"},{"v":7.4,"d":"7.40"},"II A","D. Maceikienė"]
[5,"Juozas","Rundėnas","2009-04-30","Pasvalys","Pasvalio SM","SK Svalė",0.164,7.41,0.149,7.44,"II A","K. Mačėnas"]
[6,"Edvinas","Guzas","2008-11-08","Šiauliai","ŠSG",null,0.142,7.45,0.153,"DNF","II A","R. Razmaitė, A. Kitanov"]
["Vieta","Vardas","Pavardė","Gimimo data","Komanda","Sporto mokykla","Sporto klubas","R.l","Rez.p.b","R.l","Rez. f","Kv.l.","Treneris"]
[7,"Denas","Kupčaloitis","2009-02-01","Šiauliai","ŠLASC",null,0.173,7.56,null,null,"II A","D. Šaučikovas "]
[8,"Erikas","Kalnietis","2009-09-22","Šiauliai","ŠSG",null,0.159,7.87,null,null,"III A","R. Razmaitė, A. Kitanov"]
[9,"Simonas","Murza","2008-06-15","Šiauliai","ŠLASC",null,{"v":0.15,"d":"0.150"},7.88,null,null,"III A","J. Spudis, V. Žiedienė"]
[9,"Nikolas","Vaišvilas","2008-07-12","Šiauliai","ŠLASC",null,0.197,7.88,null,null,"III A","J. Baikštys"]
[11,"Ivan","Schuha","2011-01-19","Šiauliai","ŠLASC",null,0.166,7.97,null,null,"III A","L. Maceika"]
[12,"Augustas","Šimkus","2010-02-02","Šiauliai","ŠLASC",null,0.159,8.06,null,null,"III A","L. Roikienė"]

{"sheet":"200 m","index":7,"n_rows":34,"n_cols":12,"rows_kept":34}
["ŠIAULIŲ MIESTO LENGVOSIOS ATLETIKOS ATVIRAS ČEMPIONATAS"]
["Šiauliai, 2026 m. vasario 18 d."]
[]
[null,"200 m bėgimas moterys"]
[null,1,"bėgimas iš",6]
["Vieta","Takas","Vardas","Pavardė","Gimimo data","Komanda","Sporto mokykla","Sporto klubas","R.l","Rezultatas","Kv.l","Treneris"]
[1,4,"Austėja","Žilinskaitė","2007-11-06","Pasvalys","Pasvalio SM","SK Svalė",null,26.53,"I A","K. Mačėnas"]
[2,3,"Miglė","Diržinauskaitė","2009-05-27","Šiauliai","ŠLASC-ŠSG",null,null,27.44,"II A","J. Baikštys"]
[3,2,"Solveiga","Stulpinaitė","2009-03-02","Šiauliai","ŠSG",null,null,27.93,"II A","R. Razmaitė, A. Kitanov"]
[null,2,"bėgimas iš",6]
["Vieta","Takas","Vardas","Pavardė","Gimimo data","Komanda","Sporto mokykla","Sporto klubas","R.l","Rezultatas","Kv.l","Treneris"]
[1,3,"Gabija","Augustinavičiūtė","2010-04-30","Šiauliai","ŠLASC",null,null,27.54,"II A","U. Baikštytė"]
[2,4,"Enrika","Pocevičiūtė","2010-08-16","Šiauliai","ŠLASC",null,null,27.83,"II A","R. Kergytė-Dauskurdienė"]
[3,2,"Gabija","Preibytė","2009-09-08","Telšiai","TSRC","„Žemaitija“",null,28.86,"II A","L. Kaveckienė"]
[null,3,"bėgimas iš",6]
["Vieta","Takas","Vardas","Pavardė","Gimimo data","Komanda","Sporto mokykla","Sporto klubas","R.l","Rezultatas","Kv.l","Treneris"]
[1,4,"Dorotėja","Čepulė","2011-02-05","Šiauliai","ŠLASC",null,null,29.72,"III A","D. Šaučikovas "]
[2,2,"Ugnė","Marcinkutė","2008-05-29","Šiauliai","ŠLASC",null,null,30.08,"III A","U. Baikštytė"]
[3,3,"Gerda","Domeikaitė","2007-11-14","Telšiai","TSRC","„Žemaitija“",null,31.61,"III A","L. Kaveckienė"]
[null,4,"bėgimas iš",6]
["Vieta","Takas","Vardas","Pavardė","Gimimo data","Komanda","Sporto mokykla","Sporto klubas","R.l","Rezultatas","Kv.l","Treneris"]
[1,4,"Airina","Rimkevičiūtė","2007-10-14","Šiauliai","ŠLASC-ŠSG",null,null,28.68,"II A","J. Baikštienė"]
[2,3,"Agnė","Sipavičiūtė","2008-07-11","Šiauliai","ŠLASC","„Vytis“",null,29.26,"III A","D. Vrubliauskas"]
[3,2,"Emilija","Karpinaitė","2010-04-17","Šiauliai","ŠLASC-ŠSG",null,null,29.58,"III A","J. Spudis, V. Žiedienė"]
[4,1,"Milda","Degutytė","2012-10-06","Šiauliai","ŠLASC",null,null,31.02,"III A","D. Šaučikovas "]
[null,5,"bėgimas iš",6]
["Vieta","Takas","Vardas","Pavardė","Gimimo data","Komanda","Sporto mokykla","Sporto klubas","R.l","Rezultatas","Kv.l","Treneris"]
[1,4,"Ugnė","Juozapavičiūtė","2009-01-09","Telšiai","TSRC","„Žemaitija“",null,30.87,"III A","L. Kaveckienė"]
[2,3,"Emilė","Stugytė","2012-03-14","Šiauliai","ŠLASC",null,null,31.44,"III A","D. Šaučikovas "]
[null,6,"bėgimas iš",6]
["Vieta","Takas","Vardas","Pavardė","Gimimo data","Komanda","Sporto mokykla","Sporto klubas","R.l","Rezultatas","Kv.l","Treneris"]
[1,3,"Dija","Šulskytė","2011-02-02","Šiauliai","ŠLASC",null,null,31.53,"III A","R. Kergytė-Dauskurdienė"]
[2,2,"Gabrielė","Dovtartaitė","2008","Šiauliai","ŠLASC",null,null,32.77,"I JA","J. Spudis, V. Žiedienė"]
[null,4,"Sofija","Jurgelionytė","2010-10-30","Šiauliai","ŠLASC-ŠSG",null,null,"DQ","","J. Spudis, V. Žiedienė"]

{"sheet":"200 m suv","index":8,"n_rows":24,"n_cols":11,"rows_kept":24}
["ŠIAULIŲ MIESTO LENGVOSIOS ATLETIKOS ATVIRAS ČEMPIONATAS"]
["Šiauliai, 2026 m. vasario 18 d."]
[]
[null,"200 m bėgimas moterys"]
["Suvestinė"]
["Vieta","Vardas","Pavardė","Gimimo data","Komanda","Sporto mokykla","Sporto klubas","R.l","Rezultatas","Kv.l","Treneris"]
[1,"Austėja","Žilinskaitė","2007-11-06","Pasvalys","Pasvalio SM","SK Svalė",null,26.53,"I A","K. Mačėnas"]
[2,"Miglė","Diržinauskaitė","2009-05-27","Šiauliai","ŠLASC-ŠSG",null,null,27.44,"II A","J. Baikštys"]
[3,"Gabija","Augustinavičiūtė","2010-04-30","Šiauliai","ŠLASC",null,null,27.54,"II A","U. Baikštytė"]
[4,"Enrika","Pocevičiūtė","2010-08-16","Šiauliai","ŠLASC",null,null,27.83,"II A","R. Kergytė-Dauskurdienė"]
[5,"Solveiga","Stulpinaitė","2009-03-02","Šiauliai","ŠSG",null,null,27.93,"II A","R. Razmaitė, A. Kitanov"]
[6,"Airina","Rimkevičiūtė","2007-10-14","Šiauliai","ŠLASC-ŠSG",null,null,28.68,"II A","J. Baikštienė"]
[7,"Gabija","Preibytė","2009-09-08","Telšiai","TSRC","„Žemaitija“",null,28.86,"II A","L. Kaveckienė"]
[8,"Agnė","Sipavičiūtė","2008-07-11","Šiauliai","ŠLASC","„Vytis“",null,29.26,"III A","D. Vrubliauskas"]
[9,"Emilija","Karpinaitė","2010-04-17","Šiauliai","ŠLASC-ŠSG",null,null,29.58,"III A","J. Spudis, V. Žiedienė"]
[10,"Dorotėja","Čepulė","2011-02-05","Šiauliai","ŠLASC",null,null,29.72,"III A","D. Šaučikovas "]
[11,"Ugnė","Marcinkutė","2008-05-29","Šiauliai","ŠLASC",null,null,30.08,"III A","U. Baikštytė"]
[12,"Ugnė","Juozapavičiūtė","2009-01-09","Telšiai","TSRC","„Žemaitija“",null,30.87,"III A","L. Kaveckienė"]
[13,"Milda","Degutytė","2012-10-06","Šiauliai","ŠLASC",null,null,31.02,"III A","D. Šaučikovas "]
[14,"Emilė","Stugytė","2012-03-14","Šiauliai","ŠLASC",null,null,31.44,"III A","D. Šaučikovas "]
[15,"Dija","Šulskytė","2011-02-02","Šiauliai","ŠLASC",null,null,31.53,"III A","R. Kergytė-Dauskurdienė"]
[16,"Gerda","Domeikaitė","2007-11-14","Telšiai","TSRC","„Žemaitija“",null,31.61,"III A","L. Kaveckienė"]
[17,"Gabrielė","Dovtartaitė","2008","Šiauliai","ŠLASC",null,null,32.77,"I JA","J. Spudis, V. Žiedienė"]
[null,"Sofija","Jurgelionytė","2010-10-30","Šiauliai","ŠLASC-ŠSG",null,null,"DQ","","J. Spudis, V. Žiedienė"]

{"sheet":"200 v","index":9,"n_rows":18,"n_cols":12,"rows_kept":18}
["ŠIAULIŲ MIESTO LENGVOSIOS ATLETIKOS ATVIRAS ČEMPIONATAS"]
["Šiauliai, 2026 m. vasario 18 d."]
[]
[null,"200 m bėgimas vyrai"]
[null,1,"bėgimas iš",3]
["Vieta","Takas","Vardas","Pavardė","Gimimo data","Komanda","Sporto mokykla","Sporto klubas","R.l","Rezultatas","Kv.l","Treneris"]
[1,4,"Gustas","Janulis","2009-07-03","Šiauliai","ŠLASC",null,null,23.68,"I A","J. Baikštys"]
[2,3,"Juozas","Rundėnas","2009-04-30","Pasvalys","Pasvalio SM","SK Svalė",null,24.25,"II A","K. Mačėnas"]
[null,2,"bėgimas iš",3]
["Vieta","Takas","Vardas","Pavardė","Gimimo data","Komanda","Sporto mokykla","Sporto klubas","R.l","Rezultatas","Kv.l","Treneris"]
[1,4,"Edvinas","Guzas","2008-11-08","Šiauliai","ŠSG",null,null,24.41,"II A","R. Razmaitė, A. Kitanov"]
[2,3,"Tajus","Gecevičius","2012.01.07","Šiauliai","ŠLASC","JustRun",null,25.69,"III A","J. Beržanskis"]
[3,2,"Nikolas","Vaišvilas","2008-07-12","Šiauliai","ŠLASC",null,null,26.13,"III A","J. Baikštys"]
[null,3,"bėgimas iš",3]
["Vieta","Takas","Vardas","Pavardė","Gimimo data","Komanda","Sporto mokykla","Sporto klubas","R.l","Rezultatas","Kv.l","Treneris"]
[1,3,"Lukas","Jančius","2012-09-13","Šiauliai","ŠLASC","JustRun",null,26.81,"III A","J. Beržanskis"]
[2,1,"Dovydas","Urbanavičius","2009-10-05","Šiauliai","ŠSG-ŠLASC",null,null,26.82,"III A","A. Kitanov, R. Razmaitė"]
[3,2,"Paulius","Jasiūnas","2010-04-10","Šiauliai","ŠLASC",null,null,28.89,"I JA","A. Kitanov, R. Razmaitė"]

{"sheet":"200 v suv","index":10,"n_rows":14,"n_cols":11,"rows_kept":14}
["ŠIAULIŲ MIESTO LENGVOSIOS ATLETIKOS ATVIRAS ČEMPIONATAS"]
["Šiauliai, 2026 m. vasario 18 d."]
[]
[null,"200 m bėgimas vyrai"]
["Suvestinė"]
["Vieta","Vardas","Pavardė","Gimimo data","Komanda","Sporto mokykla","Sporto klubas","R.l","Rezultatas","Kv.l","Treneris"]
[1,"Gustas","Janulis","2009-07-03","Šiauliai","ŠLASC",null,null,23.68,"I A","J. Baikštys"]
[2,"Juozas","Rundėnas","2009-04-30","Pasvalys","Pasvalio SM","SK Svalė",null,24.25,"II A","K. Mačėnas"]
[3,"Edvinas","Guzas","2008-11-08","Šiauliai","ŠSG",null,null,24.41,"II A","R. Razmaitė, A. Kitanov"]
[4,"Tajus","Gecevičius","2012.01.07","Šiauliai","ŠLASC","JustRun",null,25.69,"III A","J. Beržanskis"]
[5,"Nikolas","Vaišvilas","2008-07-12","Šiauliai","ŠLASC",null,null,26.13,"III A","J. Baikštys"]
[6,"Lukas","Jančius","2012-09-13","Šiauliai","ŠLASC","JustRun",null,26.81,"III A","J. Beržanskis"]
[7,"Dovydas","Urbanavičius","2009-10-05","Šiauliai","ŠSG-ŠLASC",null,null,26.82,"III A","A. Kitanov, R. Razmaitė"]
[8,"Paulius","Jasiūnas","2010-04-10","Šiauliai","ŠLASC",null,null,28.89,"I JA","A. Kitanov, R. Razmaitė"]

{"sheet":"400 m","index":11,"n_rows":20,"n_cols":12,"rows_kept":20}
["ŠIAULIŲ MIESTO LENGVOSIOS ATLETIKOS ATVIRAS ČEMPIONATAS"]
["Šiauliai, 2026 m. vasario 18 d."]
[]
[null,"400 m bėgimas moterys"]
[null,1,"bėgimas iš",3]
["Vieta","Takas","Vardas","Pavardė","Gimimo data","Komanda","Sporto mokykla","Sporto klubas","R.l","Rezultatas","Kv.l","Treneris"]
[1,3,"Ugnė","Noreikaitė","2008-03-14","Šiauliai","ŠlASC-ŠSG",null,null,"00:00:58.810","I A","J. Baikštys"]
[2,4,"Aiva","Labanauskaitė","2007-04-04","Šiauliai","ŠLASC",null,null,"00:00:59.440","I A","J. Spudis, V. Žiedienė"]
[3,2,"Leila","Sebeikaitė","2010-12-28","Šiauliai","ŠLASC",null,null,"00:01:03.760","II A","D. Šaučikovas "]
[null,2,"bėgimas iš",3]
["Vieta","Takas","Vardas","Pavardė","Gimimo data","Komanda","Sporto mokykla","Sporto klubas","R.l","Rezultatas","Kv.l","Treneris"]
[1,2,"Augustė","Astramskaitė","2011-06-19","Šiauliai","ŠLASC",null,null,"00:01:05.140","II A","R. Kergytė-Dauskurdienė"]
[2,3,"Dovilė","Pilibaitytė","2009-12-11","Šiauliai","ŠSG",null,null,"00:01:05.620","III A","R. Razmaitė, A. Kitanov"]
[3,4,"Rugilė","Mačiūtė","2010-07-29","Akmenės SC","Akmenės SC",null,null,"00:01:06.810","III A","G. Tiškevičienė"]
[4,1,"Gabija","Mažulauskaitė","2012-10-26","Šiauliai","ŠLASC",null,null,"00:01:29.550","","D. Šaučikovas "]
[null,3,"bėgimas iš",3]
["Vieta","Takas","Vardas","Pavardė","Gimimo data","Komanda","Sporto mokykla","Sporto klubas","R.l","Rezultatas","Kv.l","Treneris"]
[1,4,"Eidvilė","Grigaitė","2012-11-22","Šiauliai","ŠLASC",null,null,"00:01:11.260","I JA","D. Šaučikovas "]
[2,2,"Agnė","Kaveckaitė","2008-08-24","Telšiai","TSRC","„Žemaitija“",null,"00:01:12.260","I JA","L. Kaveckienė"]
[3,3,"Kamilė","Ežerskytė","2012-07-27","Šiauliai","ŠLASC",null,null,"00:01:19.300","II JA","D. Šaučikovas "]

{"sheet":"400 m suv","index":12,"n_rows":16,"n_cols":11,"rows_kept":16}
["ŠIAULIŲ MIESTO LENGVOSIOS ATLETIKOS ATVIRAS ČEMPIONATAS"]
["Šiauliai, 2026 m. vasario 18 d."]
[]
[null,"400 m bėgimas moterys"]
["Suvestinė"]
["Vieta","Vardas","Pavardė","Gimimo data","Komanda","Sporto mokykla","Sporto klubas","R.l","Rezultatas","Kv.l","Treneris"]
[1,"Ugnė","Noreikaitė","2008-03-14","Šiauliai","ŠlASC-ŠSG",null,null,"00:00:58.810","I A","J. Baikštys"]
[2,"Aiva","Labanauskaitė","2007-04-04","Šiauliai","ŠLASC",null,null,"00:00:59.440","I A","J. Spudis, V. Žiedienė"]
[3,"Leila","Sebeikaitė","2010-12-28","Šiauliai","ŠLASC",null,null,"00:01:03.760","II A","D. Šaučikovas "]
[4,"Augustė","Astramskaitė","2011-06-19","Šiauliai","ŠLASC",null,null,"00:01:05.140","II A","R. Kergytė-Dauskurdienė"]
[5,"Dovilė","Pilibaitytė","2009-12-11","Šiauliai","ŠSG",null,null,"00:01:05.620","III A","R. Razmaitė, A. Kitanov"]
[6,"Rugilė","Mačiūtė","2010-07-29","Akmenės SC","Akmenės SC",null,null,"00:01:06.810","III A","G. Tiškevičienė"]
[7,"Eidvilė","Grigaitė","2012-11-22","Šiauliai","ŠLASC",null,null,"00:01:11.260","I JA","D. Šaučikovas "]
[8,"Agnė","Kaveckaitė","2008-08-24","Telšiai","TSRC","„Žemaitija“",null,"00:01:12.260","I JA","L. Kaveckienė"]
[9,"Kamilė","Ežerskytė","2012-07-27","Šiauliai","ŠLASC",null,null,"00:01:19.300","II JA","D. Šaučikovas "]
[10,"Gabija","Mažulauskaitė","2012-10-26","Šiauliai","ŠLASC",null,null,"00:01:29.550","","D. Šaučikovas "]

{"sheet":"400 v","index":13,"n_rows":13,"n_cols":12,"rows_kept":13}
["ŠIAULIŲ MIESTO LENGVOSIOS ATLETIKOS ATVIRAS ČEMPIONATAS"]
["Šiauliai, 2026 m. vasario 18 d."]
[]
[null,"400 m bėgimas vyrai"]
[null,1,"bėgimas iš",2]
["Vieta","Takas","Vardas","Pavardė","Gimimo data","Komanda","Sporto mokykla","Sporto klubas","R.l","Rezultatas","Kv.l","Treneris"]
[1,4,"Gabrielius","Vasauskas","2011-06-30","Šiauliai","ŠLASC",null,null,"00:00:57.170","III A","A. Kitanov, R. Razmaitė"]
[2,3,"Karolis","Beržinskas","2010-03-11","Šiauliai","ŠLASC",null,null,"00:00:57.410","III A","D. Šaučikovas "]
[3,2,"Erikas","Poilovas","2008-08-20","Šiauliai","ŠlASC-ŠSG",null,null,"00:00:57.470","III A","J. Baikštienė"]
[null,2,"bėgimas iš",2]
["Vieta","Takas","Vardas","Pavardė","Gimimo data","Komanda","Sporto mokykla","Sporto klubas","R.l","Rezultatas","Kv.l","Treneris"]
[1,4,"Paulius","Bauža","2010-04-08","Šiauliai","ŠSG-ŠLASC",null,null,"00:00:56.710","III A","A. Kitanov"]
[2,3,"Ruslan","Velykant","2011-07-01","Šiauliai","ŠLASC",null,null,"00:01:02.790","I JA","D. Šaučikovas "]

{"sheet":"400 v suv","index":14,"n_rows":11,"n_cols":11,"rows_kept":11}
["ŠIAULIŲ MIESTO LENGVOSIOS ATLETIKOS ATVIRAS ČEMPIONATAS"]
["Šiauliai, 2026 m. vasario 18 d."]
[]
[null,"400 m bėgimas vyrai"]
["Suvestinė"]
["Vieta","Vardas","Pavardė","Gimimo data","Komanda","Sporto mokykla","Sporto klubas","R.l","Rezultatas","Kv.l","Treneris"]
[1,"Paulius","Bauža","2010-04-08","Šiauliai","ŠSG-ŠLASC",null,null,"00:00:56.710","III A","A. Kitanov"]
[2,"Gabrielius","Vasauskas","2011-06-30","Šiauliai","ŠLASC",null,null,"00:00:57.170","III A","A. Kitanov, R. Razmaitė"]
[3,"Karolis","Beržinskas","2010-03-11","Šiauliai","ŠLASC",null,null,"00:00:57.410","III A","D. Šaučikovas "]
[4,"Erikas","Poilovas","2008-08-20","Šiauliai","ŠLASC-ŠSG",null,null,"00:00:57.470","III A","J. Baikštienė"]
[5,"Ruslan","Velykant","2011-07-01","Šiauliai","ŠLASC",null,null,"00:01:02.790","I JA","D. Šaučikovas "]

{"sheet":"800 m","index":15,"n_rows":17,"n_cols":10,"rows_kept":17}
["ŠIAULIŲ MIESTO LENGVOSIOS ATLETIKOS ATVIRAS ČEMPIONATAS"]
["Šiauliai, 2026 m. vasario 18 d."]
[]
[null,"800 m bėgimas moterys"]
[1,"bėgimas iš",2]
["Vieta","Vardas","Pavardė","Gimimo data","Komanda","Sporto mokykla","Sporto klubas","Rezultatas","Kv.l","Treneris"]
[1,"Šarūnė","Stuopelytė","2011-04-06","Šiauliai","ŠLASC",null,"00:02:44.710","III A","R. Kergytė-Dauskurdienė"]
[2,"Ema","Jokubauskaitė","2012-11-01","Šiauliai","ŠLASC",null,"00:02:50.910","III A","R. Kergytė-Dauskurdienė"]
[3,"Miglė","Gaurilčikaitė","2012-08-24","Šiauliai","ŠLASC",null,"00:02:55.960","I JA","R. Kergytė-Dauskurdienė"]
[4,"Urtė","Žibutytė","2011-04-21","Šiauliai","ŠLASC",null,"00:03:11.750","II JA","R. Kergytė-Dauskurdienė"]
[2,"bėgimas iš",2]
["Vieta","Vardas","Pavardė","Gimimo data","Komanda","Sporto mokykla","Sporto klubas","Rezultatas","Kv.l","Treneris"]
[1,"Auksė","Linkutė","1999-12-24","Šiauliai","ŠLASC",null,"00:02:18.770","I A","D. Šaučikovas "]
[2,"Adelė","Venckutė","2007-12-22","Šiauliai","ŠLASC",null,"00:02:28.270","II A","R. Kergytė-Dauskurdienė"]
[3,"Austėja","Šimelytė","2010-01-04","Šiauliai","ŠLASC",null,"00:02:29.670","II A","D. Šaučikovas "]
[4,"Nerilė","Marcinkutė","2011-12-29","Šiauliai","ŠLASC",null,"00:02:30.470","II A","R. Kergytė-Dauskurdienė"]
[5,"Rugilė","Aušbikavičiūtė","2011-07-15","Šiauliai","ŠLASC",null,"00:02:42.500","III A","D. Šaučikovas "]

{"sheet":"800 m suv","index":16,"n_rows":15,"n_cols":10,"rows_kept":15}
["ŠIAULIŲ MIESTO LENGVOSIOS ATLETIKOS ATVIRAS ČEMPIONATAS"]
["Šiauliai, 2026 m. vasario 18 d."]
[]
[null,"800 m bėgimas moterys"]
["Suvestinė"]
["Vieta","Vardas","Pavardė","Gimimo data","Komanda","Sporto mokykla","Sporto klubas","Rezultatas","Kv.l","Treneris"]
[1,"Auksė","Linkutė","1999-12-24","Šiauliai","ŠLASC",null,"00:02:18.770","I A","D. Šaučikovas "]
[2,"Adelė","Venckutė","2007-12-22","Šiauliai","ŠLASC",null,"00:02:28.270","II A","R. Kergytė-Dauskurdienė"]
[3,"Austėja","Šimelytė","2010-01-04","Šiauliai","ŠLASC",null,"00:02:29.670","II A","D. Šaučikovas "]
[4,"Nerilė","Marcinkutė","2011-12-29","Šiauliai","ŠLASC",null,"00:02:30.470","II A","R. Kergytė-Dauskurdienė"]
[5,"Rugilė","Aušbikavičiūtė","2011-07-15","Šiauliai","ŠLASC",null,"00:02:42.500","III A","D. Šaučikovas "]
[6,"Šarūnė","Stuopelytė","2011-04-06","Šiauliai","ŠLASC",null,"00:02:44.710","III A","R. Kergytė-Dauskurdienė"]
[7,"Ema","Jokubauskaitė","2012-11-01","Šiauliai","ŠLASC",null,"00:02:50.910","III A","R. Kergytė-Dauskurdienė"]
[8,"Miglė","Gaurilčikaitė","2012-08-24","Šiauliai","ŠLASC",null,"00:02:55.960","I JA","R. Kergytė-Dauskurdienė"]
[9,"Urtė","Žibutytė","2011-04-21","Šiauliai","ŠLASC",null,"00:03:11.750","II JA","R. Kergytė-Dauskurdienė"]

{"sheet":"800 v","index":17,"n_rows":16,"n_cols":10,"rows_kept":16,"hidden":true}
["ŠIAULIŲ MIESTO LENGVOSIOS ATLETIKOS ATVIRI JAUNIŲ, JAUNIMO IR SUAUGUSIŲ ČEMPIONATAI"]
["Šiauliai, 2025 m. sausio 16 d."]
[]
[null,"800 m bėgimas jauniai"]
[1,"bėgimas iš",1]
["Eilė","Vardas","Pavardė","Gimimo data","Komanda","Sporto mokykla","Sporto klubas","Rezultatas","Kv.l","Treneris"]
[1,"Martynas","Jucys","2008-06-28","Joniškis-Šiauliai","JSC",null,"00:02:14.600",{"$f":"IF(ISBLANK(H7),\"\",IF(H7>0.00210648148148148,\"\",IF(H7<=0.00142361111111111,\"I A\",IF(H7<=0.00155092592592593,\"II A\",IF(H7<=0.00171296296296296,\"III A\",IF(H7<=0.00186342592592593,\"I JA\",IF(H7<=0.00199074074074074,\"II JA\",IF(H7<=0.00210648148148148,\"III JA\"))))))))","v":"III A"},"P. Veikalas, A. Kitanov"]
[2,"Arlitas","Šarkovas","2009-03-05","Tytuvėnai","Tytuvėnų gimnazija",null,"00:02:14.050",{"$f":"IF(ISBLANK(H8),\"\",IF(H8>0.00210648148148148,\"\",IF(H8<=0.00142361111111111,\"I A\",IF(H8<=0.00155092592592593,\"II A\",IF(H8<=0.00171296296296296,\"III A\",IF(H8<=0.00186342592592593,\"I JA\",IF(H8<=0.00199074074074074,\"II JA\",IF(H8<=0.00210648148148148,\"III JA\"))))))))","v":"III A"},"P. Sabaitis"]
[3,"Airidas","Freibergis","2008-12-30","Pakruojo r.","Pakruojo SC",null,"00:02:38.820",{"$f":"IF(ISBLANK(H9),\"\",IF(H9>0.00210648148148148,\"\",IF(H9<=0.00142361111111111,\"I A\",IF(H9<=0.00155092592592593,\"II A\",IF(H9<=0.00171296296296296,\"III A\",IF(H9<=0.00186342592592593,\"I JA\",IF(H9<=0.00199074074074074,\"II JA\",IF(H9<=0.00210648148148148,\"III JA\"))))))))","v":"I JA"},"R. Klybaitė"]
[4,"Konstantinas","Pikturna","2009-03-11","Kelmė","Kelmės SC",null,"00:02:18.520",{"$f":"IF(ISBLANK(H10),\"\",IF(H10>0.00210648148148148,\"\",IF(H10<=0.00142361111111111,\"I A\",IF(H10<=0.00155092592592593,\"II A\",IF(H10<=0.00171296296296296,\"III A\",IF(H10<=0.00186342592592593,\"I JA\",IF(H10<=0.00199074074074074,\"II JA\",IF(H10<=0.00210648148148148,\"III JA\"))))))))","v":"III A"},"G. Kasputis "]
[5,"Edvardas","Volbikas","2009-09-04","Kelmė","Kelmės SC",null,"00:02:45.330",{"$f":"IF(ISBLANK(H11),\"\",IF(H11>0.00210648148148148,\"\",IF(H11<=0.00142361111111111,\"I A\",IF(H11<=0.00155092592592593,\"II A\",IF(H11<=0.00171296296296296,\"III A\",IF(H11<=0.00186342592592593,\"I JA\",IF(H11<=0.00199074074074074,\"II JA\",IF(H11<=0.00210648148148148,\"III JA\"))))))))","v":"II JA"},"G. Kasputis "]
[6,"Deimantas","Kazimieraitis","2008-08-13","Joniškis","JSC",null,"00:02:21.080","III A","V. Butautienė, P. Veikalas"]
[7,"Ugnius","Ulvydas","2009-08-23","Joniškis","JSC",null,"00:02:25.120","III A","V. Butautienė, P. Veikalas"]
[8,"Emilijus","Krincius ","2009-09-23","Kelmė","Kelmės SC",null,"00:02:25.970","III A","G. Kasputis "]
[9,"Adrijanas","Valavičius","2009-09-25","Kelmė","Kelmės SC",null,"00:02:27.370","III A","G. Kasputis "]
[10,"Edvinas","Kapliūnas","2008-11-15","Pakruojo r.","Pakruojo SC",null,"00:02:25.770","III A","R. Klybaitė"]

{"sheet":"800 v suv","index":18,"n_rows":8,"n_cols":10,"rows_kept":8}
["ŠIAULIŲ MIESTO LENGVOSIOS ATLETIKOS ATVIRAS ČEMPIONATAS"]
["Šiauliai, 2026 m. vasario 18 d."]
[]
[null,"800 m bėgimas vyrai"]
["Suvestinė"]
["Vieta","Vardas","Pavardė","Gimimo data","Komanda","Sporto mokykla","Sporto klubas","Rezultatas","Kv.l","Treneris"]
[1,"Martynas","Jucys","2008-06-28","Šiauliai","ŠSG",null,"00:02:10.360","II A","A. Kitanov, R. Razmaitė"]
[2,"Arnas","Mašidlauskas","2010-05-10","Šiauliai","ŠLASC","JustRun","00:02:18.030","III A","J. Beržanskis"]

{"sheet":"1500 m suv","index":19,"n_rows":8,"n_cols":10,"rows_kept":8}
["ŠIAULIŲ MIESTO LENGVOSIOS ATLETIKOS ATVIRAS ČEMPIONATAS"]
["Šiauliai, 2026 m. vasario 18 d."]
[]
[null,"1500 m bėgimas moterys"]
["Suvestinė"]
["Vieta","Vardas","Pavardė","Gimimo data","Komanda","Sporto mokykla","Sporto klubas","Rezultatas","Kv.l","Treneris"]
[1,"Eimantė","Mockutė","2010-07-02","Šiauliai","ŠSG",null,"00:05:58.760","I JA","R. Razmaitė, A. Kitanov"]
[2,"Kamilė","Aušbikavičiūtė","2011-07-15","Šiauliai","ŠLASC",null,"00:06:00.860","I JA","D. Šaučikovas "]

{"sheet":"1500 v suv","index":20,"n_rows":11,"n_cols":10,"rows_kept":11}
["ŠIAULIŲ MIESTO LENGVOSIOS ATLETIKOS ATVIRAS ČEMPIONATAS"]
["Šiauliai, 2026 m. vasario 18 d."]
[]
[null,"1500 m bėgimas vyrai"]
["Suvestinė"]
["Vieta","Vardas","Pavardė","Gimimo data","Komanda","Sporto mokykla","Sporto klubas","Rezultatas","Kv.l","Treneris"]
[1,"Gabrielius","Gaubša","1998-02-16","Šiauliai","ŠLASC","JustRun","00:04:05.330","I A","J. Beržanskis"]
[2,"Mikas","Montvilas","2003-09-28","Šiaulių rajonas","Kuršėnų SM","Lukas","00:04:12.050","II A","A. Lukošaitis"]
[3,"Aurimas","Rimkus","1988-01-12","Šiauliai","ŠLASC",null,"00:04:12.100","II A","D. Šaučikovas "]
[4,"Aronas","Januška","2012-04-21","Panevėžys","PSC",null,"00:04:36.630","II A","G. Krivickas "]
[null,"Robertas","Vališauskas","1997-08-05","Šiauliai","ŠLASC","JustRun","DNF","","J. Beržanskis"]

{"sheet":"3000 m suv","index":21,"n_rows":8,"n_cols":10,"rows_kept":8}
["ŠIAULIŲ MIESTO LENGVOSIOS ATLETIKOS ATVIRAS ČEMPIONATAS"]
["Šiauliai, 2026 m. vasario 18 d."]
[]
[null,"3000 m bėgimas moterys"]
["Suvestinė"]
["Vieta","Vardas","Pavardė","Gimimo data","Komanda","Sporto mokykla","Sporto klubas","Rezultatas","Kv.l","Treneris"]
[1,"Šalnė","Patkauskienė","1975-02-28","Šiauliai",null,null,"00:11:49.260","III A","D. Šaučikovas "]
[2,"Aurėja","Žalandauskaitė","2009-09-01","Šiaulių rajonas","Kuršėnų SM","Lukas","00:12:41.510","I JA","A. Lukošaitis"]

{"sheet":"3000 v suv","index":22,"n_rows":10,"n_cols":10,"rows_kept":10}
["ŠIAULIŲ MIESTO LENGVOSIOS ATLETIKOS ATVIRAS ČEMPIONATAS"]
["Šiauliai, 2026 m. vasario 18 d."]
[]
[null,"3000 m bėgimas vyrai"]
["Suvestinė"]
["Vieta","Vardas","Pavardė","Gimimo data","Komanda","Sporto mokykla","Sporto klubas","Rezultatas","Kv.l","Treneris"]
[1,"Kevinas","Olišauskis","1996-03-28","Šiauliai","ŠLASC","JustRun-Sakas","00:08:48.800","I A","J. Beržanskis"]
[2,"Vytenis","Ašmantas","1992-10-06","Šiauliai",null,"JustRun","00:09:46.950","II A","J. Beržanskis"]
[3,"Domantas","Barzdžius","2007-05-23","Šiauliai","ŠSG",null,"00:10:15.920","III A","R. Razmaitė, A. Kitanov"]
[null,"Robertas","Vališauskas","1997-08-05","Šiauliai","ŠLASC","JustRun","DNF","","J. Beržanskis"]

{"sheet":"60bb m","index":23,"n_rows":12,"n_cols":12,"rows_kept":12,"hidden":true}
["ŠIAULIŲ MIESTO LENGVOSIOS ATLETIKOS ATVIRAS ČEMPIONATAS"]
["Šiauliai, 2026 m. vasario 18 d."]
[]
[null,"60 m barjerinis bėgimas moterys"]
["Finalas"]
["Vieta","Takas","Vardas","Pavardė","Gimimo data","Komanda","Sporto mokykla","Sporto klubas","R.l","Rezultatas","Kv.l","Treneris"]
[1,1,{"$nulls":8},{"$f":"IF(ISBLANK(J7),\"\",IF(J7>12.34,\"\",IF(J7<=8.5,\"SM\",IF(J7<=8.9,\"KSM\",IF(J7<=9.5,\"I A\",IF(J7<=10.24,\"II A\",IF(J7<=11.24,\"III A\",IF(J7<=12.34,\"I JA\"))))))))","v":""}]
[2,2,{"$nulls":8},{"$f":"IF(ISBLANK(J8),\"\",IF(J8>12.34,\"\",IF(J8<=8.5,\"SM\",IF(J8<=8.9,\"KSM\",IF(J8<=9.5,\"I A\",IF(J8<=10.24,\"II A\",IF(J8<=11.24,\"III A\",IF(J8<=12.34,\"I JA\"))))))))","v":""}]
[3,3,"Gabija","Preibytė","2009-09-08","Telšiai","TSRC","„Žemaitija“",null,null,{"$f":"IF(ISBLANK(J9),\"\",IF(J9>12.34,\"\",IF(J9<=8.5,\"SM\",IF(J9<=8.9,\"KSM\",IF(J9<=9.5,\"I A\",IF(J9<=10.24,\"II A\",IF(J9<=11.24,\"III A\",IF(J9<=12.34,\"I JA\"))))))))","v":""},"L. Kaveckienė"]
[4,4,"Gerda","Domeikaitė","2007-11-14","Telšiai","TSRC","„Žemaitija“",null,null,{"$f":"IF(ISBLANK(J10),\"\",IF(J10>12.34,\"\",IF(J10<=8.5,\"SM\",IF(J10<=8.9,\"KSM\",IF(J10<=9.5,\"I A\",IF(J10<=10.24,\"II A\",IF(J10<=11.24,\"III A\",IF(J10<=12.34,\"I JA\"))))))))","v":""},"L. Kaveckienė"]
[5,5,{"$nulls":8},{"$f":"IF(ISBLANK(J11),\"\",IF(J11>13.34,\"\",IF(J11<=9.24,\"I A\",IF(J11<=9.84,\"II A\",IF(J11<=10.84,\"III A\",IF(J11<=11.94,\"I JA\",IF(J11<=12.74,\"II JA\",IF(J11<=13.34,\"III JA\"))))))))","v":""}]
[6,6,{"$nulls":8},{"$f":"IF(ISBLANK(J12),\"\",IF(J12>12.34,\"\",IF(J12<=8.5,\"SM\",IF(J12<=8.9,\"KSM\",IF(J12<=9.5,\"I A\",IF(J12<=10.24,\"II A\",IF(J12<=11.24,\"III A\",IF(J12<=12.34,\"I JA\"))))))))","v":""}]

{"sheet":"60bb m suv","index":24,"n_rows":12,"n_cols":12,"rows_kept":12}
["ŠIAULIŲ MIESTO LENGVOSIOS ATLETIKOS ATVIRAS ČEMPIONATAS"]
["Šiauliai, 2026 m. vasario 18 d."]
[]
[null,"60 m barjerinis bėgimas jaunės (0,762-8,50)"]
["Suvestinė"]
["Vieta","Takas","Vardas","Pavardė","Gimimo data","Komanda","Sporto mokykla","Sporto klubas","R.l","Rezultatas","Kv.l","Treneris"]
["b/k",5,"Gabija","Preibytė","2009-09-08","Telšiai","TSRC","„Žemaitija“",0.231,"DNF","","L. Kaveckienė"]
[]
[null,"60 m barjerinis bėgimas moterys"]
["Suvestinė"]
["Vieta","Takas","Vardas","Pavardė","Gimimo data","Komanda","Sporto mokykla","Sporto klubas","R.l","Rezultatas","Kv.l","Treneris"]
[1,3,"Gerda","Domeikaitė","2007-11-14","Telšiai","TSRC","„Žemaitija“",0.276,11.78,"I JA","L. Kaveckienė"]

{"sheet":"60bb v","index":25,"n_rows":12,"n_cols":12,"rows_kept":12,"hidden":true}
["ŠIAULIŲ MIESTO LENGVOSIOS ATLETIKOS ATVIRAS ČEMPIONATAS"]
["Šiauliai, 2026 m. vasario 18 d."]
[]
[null,"60 m barjerinis bėgimas jaunuoliai (0,991-9,14)"]
["Finalas"]
["Vieta","Takas","Vardas","Pavardė","Gimimo data","Komanda","Sporto mokykla","Sporto klubas","R.l","Rezultatas","Kv.l","Treneris"]
[1,1,{"$nulls":8},{"$f":"IF(ISBLANK(J7),\"\",IF(J7>11.84,\"\",IF(J7<=8.35,\"KSM\",IF(J7<=8.9,\"I A\",IF(J7<=9.64,\"II A\",IF(J7<=10.54,\"III A\",IF(J7<=11.84,\"I JA\")))))))","v":""}]
[2,2,{"$nulls":8},{"$f":"IF(ISBLANK(J8),\"\",IF(J8>11.84,\"\",IF(J8<=8.35,\"KSM\",IF(J8<=8.9,\"I A\",IF(J8<=9.64,\"II A\",IF(J8<=10.54,\"III A\",IF(J8<=11.84,\"I JA\")))))))","v":""}]
[3,3,"Kristupas","Spudis","2007-09-25","Šiauliai","ŠlASC/ŠSG",{"$nulls":3},{"$f":"IF(ISBLANK(J9),\"\",IF(J9>10.74,\"\",IF(J9<=8.1,\"SM\",IF(J9<=8.55,\"KSM\",IF(J9<=9.1,\"I A\",IF(J9<=9.84,\"II A\",IF(J9<=10.74,\"III A\")))))))","v":""},"J. Baikštys"]
[4,4,{"$nulls":8},{"$f":"IF(ISBLANK(J10),\"\",IF(J10>11.84,\"\",IF(J10<=8.35,\"KSM\",IF(J10<=8.9,\"I A\",IF(J10<=9.64,\"II A\",IF(J10<=10.54,\"III A\",IF(J10<=11.84,\"I JA\")))))))","v":""}]
[5,5,{"$nulls":8},{"$f":"IF(ISBLANK(J11),\"\",IF(J11>11.84,\"\",IF(J11<=8.35,\"KSM\",IF(J11<=8.9,\"I A\",IF(J11<=9.64,\"II A\",IF(J11<=10.54,\"III A\",IF(J11<=11.84,\"I JA\")))))))","v":""}]
[6,6,{"$nulls":8},{"$f":"IF(ISBLANK(J12),\"\",IF(J12>11.84,\"\",IF(J12<=8.35,\"KSM\",IF(J12<=8.9,\"I A\",IF(J12<=9.64,\"II A\",IF(J12<=10.54,\"III A\",IF(J12<=11.84,\"I JA\")))))))","v":""}]

{"sheet":"60bb v suv","index":26,"n_rows":7,"n_cols":12,"rows_kept":7}
["ŠIAULIŲ MIESTO LENGVOSIOS ATLETIKOS ATVIRAS ČEMPIONATAS"]
["Šiauliai, 2026 m. vasario 18 d."]
[]
[null,"60 m barjerinis bėgimas vyrai (1,067-9,14)"]
["Suvestinė"]
["Vieta","Takas","Vardas","Pavardė","Gimimo data","Komanda","Sporto mokykla","Sporto klubas","R.l","Rezultatas","Kv.l","Treneris"]
[1,3,"Kristupas","Spudis","2007-09-25","Šiauliai","ŠLASC-ŠSG",null,0.156,8.73,"I A","J. Baikštys"]

{"sheet":"Kartis v","index":27,"n_rows":16,"n_cols":19,"rows_kept":16,"hidden":true,"merged":[[4,8,4,16],[5,1,6,1],[11,8,11,16],[12,1,13,1]]}
["ŠIAULIŲ MIESTO LENGVOSIOS ATLETIKOS ATVIRI JAUNIŲ, JAUNIMO IR SUAUGUSIŲ ČEMPIONATAI"]
["Šiauliai, 2025 m. sausio 16 d."]
[]
[null,"Šuolis su kartimi jauniai"]
["Suvestinė",{"$nulls":7},"Bandymai"]
["Vieta",null,"Vardas","Pavardė","Gimimo data","Komanda","Sporto mokykla","Sporto Klubas",{"$nulls":9},"Rezultatas","Kv. l"]
[{"$nulls":3},"Treneris"]
[1,{"$nulls":17},{"$f":"IF(ISBLANK(R8),\"\",IF(R8<1.8,\"\",IF(R8>=3.1,\"I A\",IF(R8>=2.7,\"II A\",IF(R8>=2.4,\"III A\",IF(R8>=2.15,\"I JA\",IF(R8>=1.95,\"II JA\",IF(R8>=1.8,\"III JA\"))))))))","v":""}]
[{"$nulls":17},{"$f":"R8","v":{"v":0,"d":"0.00"}}]
[]
[null,"Šuolis su kartimi jaunuoliai, vyrai"]
["Suvestinė",{"$nulls":7},"Bandymai"]
["Vieta","Vieta Jnm","Vardas","Pavardė","Gimimo data","Komanda","Sporto mokykla","Sporto Klubas",{"$nulls":9},"Rezultatas","Kv. l"]
[{"$nulls":3},"Treneris"]
[{"$nulls":18},{"$f":"IF(ISBLANK(R15),\"\",IF(R15<1.8,\"\",IF(R15>=3.1,\"I A\",IF(R15>=2.7,\"II A\",IF(R15>=2.4,\"III A\",IF(R15>=2.15,\"I JA\",IF(R15>=1.95,\"II JA\",IF(R15>=1.8,\"III JA\"))))))))","v":""}]
[{"$nulls":17},{"$f":"R15","v":{"v":0,"d":"0.00"}}]

{"sheet":"Aukštis m","index":28,"n_rows":11,"n_cols":18,"rows_kept":11,"merged":[[4,7,4,15]]}
["ŠIAULIŲ MIESTO LENGVOSIOS ATLETIKOS ATVIRAS ČEMPIONATAS"]
["Šiauliai, 2026 m. vasario 18 d."]
[]
[null,"Šuolis į aukštį jaunės"]
["Suvestinė",{"$nulls":6},"Bandymai"]
["Vieta","Vardas","Pavardė","Gimimo data","Komanda","Sporto mokykla","Sporto Klubas",{"v":1.4,"d":"1.40"},1.45,{"v":1.5,"d":"1.50"},1.55,1.58,{"$nulls":4},"Rezultatas","Kv. l"]
[null,null,"Treneris"]
[1,"Arielė","Reinotaitė","2012-02-20","Šiauliai","ŠLASC",null,"O","O","XO","XXO","XXX",{"$nulls":4},1.55,"II A"]
[null,null,"E. Reinotas",{"$nulls":13},1.55]
[2,"Mila","Gedminaitė","2011-11-24","Šiauliai","ŠLASC ",null,"O","XO","XO","XXO","XXX",{"$nulls":4},1.55,"II A"]
[null,null,"L. Maceika",{"$nulls":13},1.55]

{"sheet":"Aukštis v","index":29,"n_rows":9,"n_cols":18,"rows_kept":9,"merged":[[4,7,4,15]]}
["ŠIAULIŲ MIESTO LENGVOSIOS ATLETIKOS ATVIRAS ČEMPIONATAS"]
["Šiauliai, 2026 m. vasario 18 d."]
[]
[null,"Šuolis į aukštį vyrai"]
["Suvestinė",{"$nulls":6},"Bandymai"]
["Vieta","Vardas","Pavardė","Gimimo data","Komanda","Sporto mokykla","Sporto Klubas",1.85,{"v":1.9,"d":"1.90"},1.95,{"v":2,"d":"2.00"},{"$nulls":5},"Rezultatas","Kv. l"]
[null,null,"Treneris"]
[1,"Redas","Šiuipys","2009-01-26","Šiauliai","ŠLASC-ŠSG",null,"O","O","XXO","XXX",{"$nulls":5},1.95,"I A"]
[null,null,"J. Baikštienė",{"$nulls":13},1.95]

{"sheet":"Kartis m","index":30,"n_rows":9,"n_cols":18,"rows_kept":9,"merged":[[4,7,4,15]]}
["ŠIAULIŲ MIESTO LENGVOSIOS ATLETIKOS ATVIRAS ČEMPIONATAS"]
["Šiauliai, 2026 m. vasario 18 d."]
[]
[null,"Šuolis su kartimi jaunės"]
["Suvestinė",{"$nulls":6},"Bandymai"]
["Vieta","Vardas","Pavardė","Gimimo data","Komanda","Sporto mokykla","Sporto Klubas",{"v":3,"d":"3.00"},{"v":3.1,"d":"3.10"},{"v":3.2,"d":"3.20"},{"$nulls":6},"Rezultatas","Kv. l"]
[null,null,"Treneris"]
[1,"Agnė","Kryževičiūtė","2009-12-10","Šiauliai","ŠLASC-ŠSG",null,"XO","XO","XXO",{"$nulls":6},{"v":3.2,"d":"3.20"},"I A"]
[null,null,"V. Žiedienė, J. Spudis",{"$nulls":13},{"v":3.2,"d":"3.20"}]

{"sheet":"Tolis m ","index":31,"n_rows":17,"n_cols":16,"rows_kept":17,"merged":[[4,7,4,12]]}
["ŠIAULIŲ MIESTO LENGVOSIOS ATLETIKOS ATVIRAS ČEMPIONATAS"]
["Šiauliai, 2026 m. vasario 18 d."]
[]
[null,"Šuolis į tolį moterys"]
["Suvestinė",{"$nulls":6},"Bandymai"]
["Vieta","Vardas","Pavardė","Gimimo data","Komanda","Sporto mokykla","Sporto klubas",1,2,3,4,5,6,"Rezultatas","Kv.l.","Treneris"]
[1,"Aida","Šiuipytė","2007-09-19","Šiauliai","ŠLASC-ŠSG",null,5.16,5.12,5.04,5.21,"X",4.96,5.21,"II A","J. Baikštys"]
[2,"Arina","Matvejeva","2004-11-15","Latvija",null,null,4.59,5.06,5.14,5.14,{"v":5.2,"d":"5.20"},{"v":5.1,"d":"5.10"},{"v":5.2,"d":"5.20"},"II A","A. Titov"]
[3,"Patricija","Tribė","2009-09-21","Šiauliai","ŠLASC",null,"X",5.11,4.95,"-",4.93,"-",5.11,"III A","J. Baikštienė"]
[4,"Gabija","Augustinavičiūtė","2010-04-30","Šiauliai","ŠLASC",null,4.46,4.75,4.43,"r",null,null,4.75,"III A","U. Baikštytė"]
[5,"Miglė","Salučkaitė","2007-12-02","Pasvalys","Pasvalio SM","SK Svalė",4.24,4.27,4.04,3.79,4.19,{"v":4.4,"d":"4.40"},{"v":4.4,"d":"4.40"},"I JA","K. Mačėnas"]
[6,"Gerda","Varekojytė","2007-07-21","Pasvalys","Pasvalio SM","SK Svalė",4.32,"X",4.34,"X","X","X",4.34,"I JA","K. Mačėnas"]
[7,"Skaistė","Kančauskytė","2009-09-13","Šiauliai","ŠLASC",null,4.15,4.18,"X",4.08,3.95,null,4.18,"II JA","J. Baikštys"]
[8,"Vakarė","Jusytė","2010-12-12","Šiauliai","ŠlASC",null,3.95,3.88,"X","X","X",null,3.95,"II JA","J. Baikštienė"]
[9,"Meda","Šidlauskaitė","2011-04-29","Šiauliai","ŠLASC-ŠSG",null,"X","X",{"v":3.7,"d":"3.70"},3.55,null,null,{"v":3.7,"d":"3.70"},"III JA","J. Baikštienė"]
[10,"Gabrielė","Blažytė","2012-04-15","Šiauliai","ŠLASC",null,3.53,3.42,3.57,"X",null,null,3.57,"","U. Baikštytė"]
[11,"Elzė Aušrinė","Dudnikaitė","2012-01-26","Šiauliai","ŠLASC",null,3.41,3.42,3.33,{"$nulls":3},3.42,"","J. Baikštys"]

{"sheet":"Tolis v","index":32,"n_rows":10,"n_cols":16,"rows_kept":10,"merged":[[4,7,4,12]]}
["ŠIAULIŲ MIESTO LENGVOSIOS ATLETIKOS ATVIRAS ČEMPIONATAS"]
["Šiauliai, 2026 m. vasario 18 d."]
[]
[null,"Šuolis į tolį vyrai"]
["Suvestinė",{"$nulls":6},"Bandymai"]
["Vieta","Vardas","Pavardė","Gimimo data","Komanda","Sporto mokykla","Sporto klubas",1,2,3,4,5,6,"Rezultatas","Kv.l.","Treneris"]
[1,"Airidas","Zabaras","2003-01-12","Šiauliai","ŠLASC",null,"X",4.02,5.11,6.68,"r",null,6.68,"II A","J. Baikštienė, U. Baikštytė"]
[2,"Deividas","Barančiukas","2008-09-02","Pasvalys","Pasvalio SM","SK Svalė",5.81,5.59,"X",{"v":6,"d":"6.00"},5.85,5.47,{"v":6,"d":"6.00"},"III A","K. Mačėnas"]
[3,"Nojus","Vilius","2008-03-30","Šiauliai","ŠLASC",null,5.85,5.72,5.56,5.78,5.88,5.66,5.88,"III A","D. Maceikienė"]
[4,"Benas","Valickas","2009-03-14","Pasvalys","Pasvalio SM","SK „Lėvuo'“",5.31,"X","X",5.31,"X",5.39,5.39,"I JA","E. Žilys"]

{"sheet":"Trišuolis m","index":33,"n_rows":10,"n_cols":16,"rows_kept":10,"merged":[[4,7,4,12]]}
["ŠIAULIŲ MIESTO LENGVOSIOS ATLETIKOS ATVIRAS ČEMPIONATAS"]
["Šiauliai, 2026 m. vasario 18 d."]
[]
[null,"Trišuolis moterys"]
["Suvestinė",{"$nulls":6},"Bandymai"]
["Vieta","Vardas","Pavardė","Gimimo data","Komanda","Sporto mokykla","Sporto klubas",1,2,3,4,5,6,"Rezultatas","Kv.l.","Treneris"]
[1,"Dinara","Soboļenkova","2007-10-18","Latvija",null,null,"X","X",11.19,10.84,"-",10.75,11.19,"III A","A. Titov"]
[2,"Patricija","Tribė","2009-09-21","Šiauliai","ŠLASC",null,"X","X",10.51,{"v":10.6,"d":"10.60"},"X",10.56,{"v":10.6,"d":"10.60"},"III A","J. Baikštienė"]
[3,"Gustė","Ragauskaitė","2011-12-19","Šiauliai","ŠLASC",null,"X",9.96,"X",9.64,"X",9.43,9.96,"I JA","U. Baikštytė"]
[null,"Skaistė","Kančauskytė","2009-09-13","Šiauliai","ŠLASC",null,"X","X","X",{"$nulls":3},"NM",null,"J. Baikštys"]

{"sheet":"Trišuolis v","index":34,"n_rows":8,"n_cols":16,"rows_kept":8,"merged":[[4,7,4,12]]}
["ŠIAULIŲ MIESTO LENGVOSIOS ATLETIKOS ATVIRAS ČEMPIONATAS"]
["Šiauliai, 2026 m. vasario 18 d."]
[]
[null,"Trišuolis vyrai"]
["Suvestinė",{"$nulls":6},"Bandymai"]
["Vieta","Vardas","Pavardė","Gimimo data","Komanda","Sporto mokykla","Sporto klubas",1,2,3,4,5,6,"Rezultatas","Kv.l.","Treneris"]
[1,"Redas","Šiuipys","2009-01-26","Šiauliai","ŠLASC-ŠSG",null,13.42,13.67,12.18,"r",null,null,13.67,"II A","J. Baikštienė"]
[2,"Adanas","Balkauskas","2006-06-26","Šiauliai","ŠLASC-ŠSG",null,13.35,13.55,13.59,13.27,13.23,13.47,13.59,"II A","J. Baikštys"]

{"sheet":"Rutulys m","index":35,"n_rows":10,"n_cols":16,"rows_kept":10,"merged":[[4,7,4,12]]}
["ŠIAULIŲ MIESTO LENGVOSIOS ATLETIKOS ATVIRAS ČEMPIONATAS"]
["Šiauliai, 2026 m. vasario 18 d."]
[]
[null,"Rutulio stūmimas moterys"]
["Suvestinė",{"$nulls":6},"Bandymai"]
["Vieta","Vardas","Pavardė","Gimimo data","Komanda","Sporto mokykla","Sporto klubas",1,2,3,4,5,6,"Rezultatas","Kv.l.","Treneris"]
[1,"Aida","Šiuipytė","2007-09-19","Šiauliai","ŠLASC-ŠSG",null,11.04,11.64,11.59,11.68,10.94,10.82,11.68,"II A","J. Baikštys"]
[2,"Gintarė","Minevičiūtė","2010-03-14","Joniškio rajonas","Joniškio SC","„Žvelgaitis“",10.77,"X",10.62,11.42,10.52,10.11,11.42,"II A","A. Mameniškis"]
[3,"Kamilė","Liepytė","2009-01-20","Šiauliai","ŠLASC",null,8.69,9.23,"X",8.48,"X",8.79,9.23,"III A","R. Kondratienė"]
[4,"Augustė","Milukaitė","2008-02-25","Šiauliai","ŠLASC",null,5.37,{"v":6.9,"d":"6.90"},6.14,6.64,{"v":7.1,"d":"7.10"},6.73,{"v":7.1,"d":"7.10"},"II JA","D. Maceikienė"]

{"sheet":"Rutulys v","index":36,"n_rows":16,"n_cols":16,"rows_kept":16,"merged":[[4,7,4,12],[9,7,9,12]]}
["ŠIAULIŲ MIESTO LENGVOSIOS ATLETIKOS ATVIRAS ČEMPIONATAS"]
["Šiauliai, 2026 m. vasario 18 d."]
[]
[null,"Rutulio stūmimas vyrai (6 kg)"]
["Suvestinė",{"$nulls":6},"Bandymai"]
["Vieta","Vardas","Pavardė","Gimimo data","Komanda","Sporto mokykla","Sporto klubas",1,2,3,4,5,6,"Rezultatas","Kv.l.","Treneris"]
["b/k","Andrius","Skuja","1992-08-09","Šiauliai","ŠLASC",null,14.85,14.84,"X","X","X","X",14.85,"II A","D. Jusys"]
[]
[null,"Rutulio stūmimas vyrai"]
["Suvestinė",{"$nulls":6},"Bandymai"]
["Vieta","Vardas","Pavardė","Gimimo data","Komanda","Sporto mokykla","Sporto klubas",1,2,3,4,5,6,"Rezultatas","Kv.l.","Treneris"]
[1,"Naubartas","Stripeikis","2000-03-10","Šiauliai","ŠLASC",null,16.36,16.79,"X",16.58,"X",16.68,16.79,"KSM","T. Skalikas"]
[2,"Martynas","Mašeckas","1993-07-21","Šiauliai","ŠLASC",null,15.12,14.32,14.61,14.35,14.39,14.75,15.12,"I A","T. Skalikas"]
[3,"Vilius","Baltutis","2009-01-19","Šiauliai","ŠLASC",null,10.56,{"v":11.3,"d":"11.30"},"X",10.27,11.11,10.69,{"v":11.3,"d":"11.30"},"III A","J. Spudis, V. Žiedienė"]
[4,"Henrikas","Gydaitis","2009-09-02","Šiauliai","ŠLASC",null,10.59,10.89,{"v":11.1,"d":"11.10"},"X",10.48,"X",{"v":11.1,"d":"11.10"},"III A","J. Spudis, V. Žiedienė"]
[5,"Dominykas","Banys","2004-09-27","Šiauliai","ŠLASC",null,9.56,9.88,10.04,10.01,{"v":10,"d":"10.00"},10.32,10.32,"III A","J. Spudis, V. Žiedienė"]